bitfinex/quotes_ETHUSD_20250428
["timestamp","ask_amount","ask_price","bid_price","bid_amount"]
[1745804693311,0.1225096,1760.7,1760.6,6.22928412]
[1745804693879,0.1225096,1760.7,1760.6,6.51696743]
[1745804694096,0.1225096,1760.7,1760.6,7.77457417]
[1745804694398,0.1225096,1760.7,1760.6,12.57606743]
[1745804695875,0.1225096,1760.7,1760.6,13.01246115]
[1745804696699,0.1225096,1760.9,1760.6,13.01246115]
[1745804697203,0.1225096,1760.8,1760.6,13.01246115]
[1745804698112,0.1225096,1760.9,1760.6,13.01246115]
[1745804698347,0.1225096,1760.9,1760.6,14.31370727]
[1745804698520,0.1225096,1761.0,1760.8,3.22928412]
[1745804698814,0.1225096,1760.9,1760.8,13.58748412]
[1745804699010,0.64421952,1761.1,1760.8,13.58748412]
[1745804699223,0.95671289,1761.2,1761.0,3.22928412]
[1745804699404,0.95671289,1761.2,1761.1,3.0]
[1745804699606,0.43500297,1761.2,1761.1,3.65229448]
[1745804699917,0.1225096,1761.2,1761.1,3.65229448]
[1745804700328,0.95671289,1761.3,1761.1,4.01752393]
[1745804700497,0.1225096,1761.2,1761.1,4.01752393]
[1745804700942,0.1225096,1761.3,1761.2,3.0]
[1745804701100,0.95671289,1761.4,1761.2,3.0]
[1745804701418,0.95671289,1761.4,1761.3,0.65229448]
[1745804701598,0.83420329,1761.4,1761.3,0.36522945]
[1745804701793,0.43500297,1761.4,1761.3,0.36522945]
[1745804702009,0.1225096,1761.4,1761.2,3.0]
[1745804702218,0.1225096,1761.3,1761.2,6.21970641]
[1745804702815,0.64421952,1761.4,1761.2,6.21970641]
[1745804703033,0.1225096,1761.4,1761.2,8.30908615]
[1745804703232,0.1225096,1761.3,1761.2,8.30908615]
[1745804703609,0.1225096,1761.3,1761.2,6.65518615]
[1745804703932,0.1225096,1761.3,1761.2,3.43547974]
[1745804704741,0.1225096,1761.3,1761.2,0.43547974]
[1745804704935,1.6436096,1761.3,1761.1,6.07]
[1745804705100,0.95671289,1761.2,1761.1,9.07]
[1745804705306,0.95671289,1761.2,1761.1,10.59897064]
[1745804705514,0.82596606,1761.2,1761.1,10.59897064]
[1745804705858,0.42676574,1761.2,1761.1,9.07]
[1745804706031,0.1225096,1761.2,1761.1,9.48786043]
[1745804708001,0.52170992,1761.4,1761.1,9.48786043]
[1745804708002,0.64421952,1761.4,1761.2,3.0]
[1745804708313,0.1225096,1761.3,1761.2,3.0]
[1745804709943,0.1225096,1761.2,1761.1,6.07]
[1745804710606,0.64421952,1761.2,1761.1,6.07]
[1745804711046,0.64421952,1761.2,1761.1,6.50325147]
[1745804711346,0.52170992,1761.2,1761.1,10.15357662]
[1745804711906,0.1225096,1761.3,1761.1,10.15357662]
[1745804712845,0.64421952,1761.3,1761.1,10.15357662]
[1745804713056,0.52170992,1761.3,1761.2,3.21970641]
[1745804713215,1.9290584,1761.6,1761.3,1.5736]
[1745804713216,0.4079584,1761.6,1761.3,1.5736]
[1745804713545,0.4079584,1761.6,1761.5,3.21970641]
[1745804713735,0.1225096,1761.8,1761.6,3.0]
[1745804713922,0.1225096,1761.7,1761.6,3.0]
[1745804715049,0.1225096,1761.7,1761.6,3.43427335]
[1745804715749,0.20546437,1762.0,1761.7,1.62]
[1745804716049,1.5211,1762.6,1762.0,3.0]
[1745804716252,1.5211,1762.6,1762.0,9.07]
[1745804716549,1.5211,1762.6,1762.2,4.83970641]
[1745804717045,1.5211,1762.6,1762.2,0.42527574]
[1745804717219,1.5211,1762.6,1762.2,3.0]
[1745804717637,0.31241561,1762.5,1762.2,3.0]
[1745804718627,0.31241561,1762.7,1762.2,6.21970641]
[1745804719612,0.31241561,1762.7,1762.2,6.65274313]
[1745804720748,0.31241561,1762.7,1762.3,1.6009]
[1745804722253,0.31241561,1762.7,1762.5,3.0]
[1745804722456,0.31241561,1762.7,1762.6,9.07]
[1745804722755,0.31241561,1762.9,1762.6,9.07]
[1745804723253,0.31241561,1762.9,1762.6,6.07]
[1745804725558,0.83114143,1762.9,1762.6,6.07]
[1745804726153,0.83114143,1762.9,1762.7,3.0]
[1745804728864,0.83114143,1762.9,1762.7,3.43173711]
[1745804729023,0.83114143,1762.9,1762.7,4.38191082]
[1745804729219,0.31241561,1762.9,1762.7,4.38191082]
[1745804729454,0.31241561,1763.1,1762.7,4.38191082]
[1745804729727,0.83114143,1763.1,1762.9,3.0]
[1745804731664,0.83114143,1763.3,1762.9,3.0]
[1745804733331,0.83114143,1763.3,1762.9,3.907]
[1745804733557,0.83114143,1763.3,1763.1,3.0]
[1745804733765,0.83114143,1763.3,1763.1,9.07]
[1745804734138,0.31241561,1763.3,1763.1,9.07]
[1745804734631,0.72037401,1763.4,1763.1,9.07]
[1745804735639,0.72037401,1763.4,1763.3,3.0]
[1745804736262,0.4079584,1763.4,1763.3,3.0]
[1745804738381,0.4079584,1763.4,1763.3,3.21970641]
[1745804738668,0.83114143,1763.6,1763.3,3.21970641]
[1745804738669,0.31241561,1763.6,1763.3,4.75020641]
[1745804738961,1.83351561,1763.6,1763.2,3.0]
[1745804739267,1.5211,1763.6,1763.2,3.0]
[1745804739466,0.51872582,1763.5,1763.2,4.4877]
[1745804739692,0.8296333,1763.5,1763.2,4.4877]
[1745804740905,0.31090748,1763.5,1763.2,4.4877]
[1745804741193,0.31090748,1763.7,1763.2,9.48929273]
[1745804741397,0.8296333,1763.7,1763.2,9.48929273]
[1745804741797,1.5211,1763.5,1763.2,9.48929273]
[1745804742199,0.51872582,1763.4,1763.2,9.48929273]
[1745804742602,0.51872582,1763.4,1763.2,6.07]
[1745804742758,1.83200748,1763.3,1762.7,12.29199314]
[1745804742960,2.3507333,1763.3,1762.7,13.52119245]
[1745804743176,0.51872582,1763.2,1762.8,3.0]
[1745804743375,0.8296333,1763.2,1762.8,6.21970641]
[1745804743600,0.51872582,1763.1,1762.8,6.21970641]
[1745804743809,0.8296333,1763.2,1762.8,6.21970641]
[1745804744026,0.8296333,1763.2,1762.8,3.0]
[1745804744202,0.8296333,1763.1,1762.8,4.65211925]
[1745804744931,0.51872582,1763.0,1762.8,4.65211925]
[1745804745726,0.31090748,1762.9,1762.8,4.65211925]
[1745804746128,0.8296333,1762.9,1762.8,4.65211925]
[1745804746923,0.31090748,1762.9,1762.8,4.65211925]
[1745804747124,0.31090748,1762.9,1762.8,3.0]
[1745804747519,0.8296333,1762.9,1762.8,3.0]
[1745804748991,2.3370333,1762.9,1762.7,6.48699314]
[1745804749191,0.31090748,1762.8,1762.7,6.48699314]
[1745804749420,0.8296333,1762.8,1762.7,9.48699314]
[1745804751214,0.8296333,1762.8,1762.7,6.48699314]
[1745804751699,0.8296333,1762.8,1762.4,9.07]
[1745804751904,0.31090748,1762.7,1762.4,6.07]
[1745804752136,0.51872582,1762.6,1762.4,7.28553293]
[1745804752436,0.51872582,1762.6,1762.5,4.5074]
[1745804752604,0.31090748,1762.7,1762.5,4.5074]
[1745804752924,0.31090748,1762.6,1762.5,4.5074]
[1745804754609,0.31090748,1762.6,1762.5,10.5774]
[1745804754809,0.31090748,1762.6,1762.5,12.12208496]
[1745804755245,0.31090748,1762.6,1762.5,9.07]
[1745804755452,0.31090748,1762.6,1762.5,6.07]
[1745804755631,0.82461505,1762.6,1762.5,6.07]
[1745804758147,2.34571505,1762.6,1762.5,6.07]
[1745804758749,2.34571505,1762.6,1762.0,6.07]
[1745804759168,0.52172092,1762.5,1762.0,6.07]
[1745804759375,1.5211,1762.4,1762.0,6.07]
[1745804759690,0.52083995,1762.3,1762.0,6.07]
[1745804760391,1.5211,1762.1,1762.0,6.07]
[1745804760547,1.5211,1762.1,1761.6,23.111]
[1745804760752,2.04193995,1762.1,1761.6,26.0024]
[1745804760952,2.04193995,1762.1,1761.6,8.9614]
[1745804761185,0.52083995,1762.0,1761.6,6.07]
[1745804761495,0.52083995,1762.0,1761.7,3.0]
[1745804761649,0.52083995,1761.9,1761.7,3.0]
[1745804762083,0.52083995,1761.9,1761.7,4.6467]
[1745804762303,0.52083995,1762.0,1761.7,4.6467]
[1745804762501,0.52083995,1762.0,1761.8,0.46467]
[1745804762716,0.52083995,1762.0,1761.8,6.53467]
[1745804762880,1.5042,1762.4,1761.9,3.21655832]
[1745804763081,1.5042,1762.4,1761.9,6.21655832]
[1745804763320,1.5042,1762.4,1762.0,0.62165583]
[1745804763523,1.5211,1762.8,1762.1,6.07]
[1745804763873,1.5211,1762.8,1762.1,7.6568]
[1745804764271,1.5211,1762.8,1762.1,6.07]
[1745804765467,1.5211,1762.7,1761.9,3.0]
[1745804766286,1.5211,1762.7,1761.8,13.4172]
[1745804766481,1.5211,1762.5,1761.8,11.873]
[1745804766693,1.5211,1762.4,1761.8,11.873]
[1745804767620,1.5211,1762.4,1761.8,14.74651069]
[1745804768025,0.31183673,1762.3,1761.8,13.10381069]
[1745804768207,1.5151,1762.2,1761.8,11.873]
[1745804768721,0.31183673,1762.1,1761.9,3.0]
[1745804769286,0.31183673,1762.1,1761.8,11.873]
[1745804769287,0.31183673,1762.1,1762.0,13.90135832]
[1745804769691,0.31183673,1762.5,1762.0,13.90135832]
[1745804769886,0.31183673,1762.5,1762.0,12.07493583]
[1745804770531,0.31183673,1762.5,1762.0,6.07]
[1745804771104,0.31183673,1762.4,1762.0,6.07]
[1745804771695,0.31183673,1762.5,1762.0,6.07]
[1745804772531,0.31183673,1762.4,1762.0,6.07]
[1745804773092,0.31183673,1762.4,1762.0,9.28655832]
[1745804773295,0.31183673,1762.4,1762.1,5.57175583]
[1745804773659,0.31183673,1762.5,1762.1,5.57175583]
[1745804774464,0.31183673,1762.7,1762.1,5.57175583]
[1745804775023,0.52167977,1762.6,1762.1,5.57175583]
[1745804775465,0.52167977,1762.6,1762.3,3.0]
[1745804775466,0.8335165,1762.6,1762.3,3.0]
[1745804775760,0.31183673,1762.6,1762.4,0.3]
[1745804776362,0.31183673,1762.6,1762.3,9.07]
[1745804776665,0.31183673,1762.5,1762.3,9.07]
[1745804778333,0.31183673,1762.4,1762.3,13.85485832]
[1745804778533,0.52167977,1762.6,1762.3,10.85485832]
[1745804778746,1.5211,1763.2,1762.5,4.78485832]
[1745804778950,1.5211,1763.2,1762.7,6.21655832]
[1745804779283,5.799,1763.6,1762.8,1.5683]
[1745804781048,5.799,1763.6,1762.9,3.0]
[1745804781245,1.5211,1763.7,1762.9,3.0]
[1745804781469,7.3191,1763.7,1762.9,3.0]
[1745804781763,1.5211,1763.7,1763.2,1.5683]
[1745804782075,0.5,1763.9,1763.2,1.5683]
[1745804782285,0.5,1763.9,1763.3,9.07]
[1745804782636,0.5,1763.9,1763.3,9.5007739]
[1745804782838,0.5,1763.9,1763.3,11.18748129]
[1745804783274,0.5,1763.9,1763.8,4.85555832]
[1745804783458,0.5,1763.9,1763.8,14.34258457]
[1745804783635,0.5,1763.9,1763.8,11.12602625]
[1745804785063,0.5,1763.9,1763.8,6.07]
[1745804785290,2.0211,1763.9,1763.8,6.07]
[1745804786068,2.0211,1763.9,1763.5,4.639]
[1745804786354,2.0211,1763.9,1763.4,6.07]
[1745804787171,0.5,1763.9,1763.4,6.07]
[1745804787353,3.21655832,1764.5,1763.4,6.07]
[1745804787999,3.21655832,1764.7,1763.5,3.0]
[1745804788158,3.21655832,1764.7,1763.4,10.12976013]
[1745804788159,5.796,1764.6,1763.7,3.0]
[1745804789278,0.09639666,1764.5,1763.7,3.0]
[1745804791181,0.09639666,1764.5,1763.7,9.07]
[1745804791555,0.09639666,1764.5,1763.8,1.562]
[1745804791852,0.09639666,1764.5,1763.9,3.0]
[1745804794893,0.09639666,1764.5,1763.8,8.04958422]
[1745804797202,5.794,1765.0,1764.0,1.6196]
[1745804797406,5.794,1765.0,1764.1,6.07]
[1745804797604,5.89019227,1765.0,1764.1,6.07]
[1745804798403,5.89019227,1765.0,1764.5,1.5937]
[1745804798404,0.09619227,1765.0,1764.5,1.5937]
[1745804798605,0.4079584,1765.1,1764.5,7.6637]
[1745804798762,0.4079584,1765.1,1764.6,3.0]
[1745804798967,0.4079584,1765.1,1764.7,1.643]
[1745804800221,0.4079584,1765.1,1764.8,3.0]
[1745804800517,0.4079584,1765.1,1764.9,1.6449]
[1745804801290,5.793,1766.2,1765.1,1.6449]
[1745804801481,5.793,1766.2,1765.2,10.93145832]
[1745804802022,5.793,1766.2,1765.2,7.7149]
[1745804802023,9.00955832,1766.2,1765.2,7.7149]
[1745804802221,0.19597386,1766.1,1765.3,3.0]
[1745804802595,0.19597386,1766.1,1765.3,3.8797099]
[1745804802991,0.09407386,1766.1,1765.4,1.6449]
[1745804816551,0.09407386,1766.1,1765.5,3.21655832]
[1745804816748,17.1339,1766.7,1765.7,6.21655832]
[1745804816945,17.22798541,1766.7,1765.8,1.6512]
[1745804817390,17.22798541,1766.7,1765.8,3.04497583]
[1745804817881,17.22798541,1766.7,1765.8,3.46793454]
[1745804819186,17.22798541,1766.7,1765.9,1.6223]
[1745804821054,17.12608541,1766.7,1766.0,1.6223]
[1745804821254,0.09408541,1766.7,1766.0,1.6223]
[1745804821568,0.08354956,1766.7,1766.2,1.6223]
[1745804821759,0.08354956,1766.7,1766.2,2.36273]
[1745804822088,0.4079584,1766.9,1766.3,1.6223]
[1745804822494,0.4079584,1766.9,1766.3,7.6923]
[1745804824690,0.4079584,1766.9,1766.3,8.11174006]
[1745804828199,0.1019,1766.8,1766.3,7.6923]
[1745804829310,0.4079584,1766.9,1766.3,8.88524727]
[1745804829964,0.4079584,1766.9,1766.4,1.6281]
[1745804830190,0.4079584,1766.9,1766.5,1.6281]
[1745804831971,0.4079584,1766.9,1766.5,6.20168282]
[1745804832312,0.4079584,1766.9,1766.6,1.5578]
[1745804833009,0.29603534,1768.0,1766.8,1.6533]
[1745804833207,3.20168282,1767.8,1766.9,1.6533]
[1745804833503,0.5097,1767.9,1767.1,1.6533]
[1745804834418,3.5097,1767.9,1767.1,1.6533]
[1745804835076,3.0,1767.9,1767.1,1.6533]
[1745804835410,3.0,1767.9,1767.1,2.07442378]
[1745804835607,3.5097,1768.0,1767.2,1.6229]
[1745804836170,0.5097,1768.0,1767.3,1.6229]
[1745804836375,5.772,1768.1,1767.3,1.6229]
[1745804836682,3.20168282,1768.0,1767.3,1.6229]
[1745804836879,3.5097,1767.9,1767.3,1.6229]
[1745804837078,3.20168282,1767.6,1767.1,7.6929]
[1745804837275,8.97368282,1767.6,1767.1,1.6229]
[1745804837680,3.71138282,1767.4,1766.7,6.07]
[1745804838487,3.20168282,1767.2,1766.7,6.07]
[1745804838819,0.2,1767.7,1766.8,1.5553]
[1745804838820,0.5097,1767.7,1766.8,1.5553]
[1745804838983,0.5097,1767.7,1766.9,1.5553]
[1745804841320,3.20168282,1767.3,1766.9,1.5553]
[1745804841507,5.771,1767.2,1766.7,6.07]
[1745804841707,3.20168282,1767.1,1766.4,1.5111]
[1745804842423,3.20168282,1767.1,1766.4,1.9402105]
[1745804842633,5.771,1767.2,1766.4,0.4291105]
[1745804842933,0.31540366,1767.1,1766.5,1.5595]
[1745804843593,5.771,1767.2,1766.5,1.5595]
[1745804844024,0.31534253,1767.1,1766.5,1.5595]
[1745804844621,3.0,1767.4,1766.5,1.5595]
[1745804844821,0.31542167,1767.3,1766.5,1.5595]
[1745804846298,5.771,1767.5,1766.5,1.5595]
[1745804846299,0.31542167,1767.2,1766.5,1.5595]
[1745804846518,0.31542167,1767.2,1766.5,2.05786208]
[1745804846727,0.31542167,1767.2,1766.6,1.5493]
[1745804847096,0.31542167,1767.1,1766.6,1.5493]
[1745804847897,0.31542167,1767.0,1766.6,1.5493]
[1745804848093,0.31542167,1767.0,1766.6,7.6193]
[1745804848295,0.31542167,1767.0,1766.7,1.554]
[1745804848494,0.31542167,1767.0,1766.6,6.07]
[1745804848716,4.02680449,1766.9,1766.4,1.554]
[1745804848930,9.79780449,1766.9,1766.4,1.554]
[1745804849397,4.02680449,1766.9,1766.4,1.554]
[1745804849733,0.31542167,1766.8,1766.4,1.554]
[1745804850119,8.97268282,1766.9,1766.4,1.554]
[1745804850710,0.31393925,1766.8,1766.4,1.554]
[1745804851722,0.31393925,1766.7,1766.4,1.554]
[1745804852096,0.82363925,1766.7,1766.2,1.5451]
[1745804852300,3.0,1766.6,1765.9,1.5451]
[1745804852533,3.20168282,1766.3,1765.6,4.21174548]
[1745804852865,0.31393925,1766.2,1765.6,5.29992614]
[1745804853029,0.31393925,1766.2,1765.6,1.5063]
[1745804853427,0.31393925,1766.1,1765.6,1.5063]
[1745804853652,0.5097,1766.0,1765.3,1.5869]
[1745804854049,0.31393925,1765.9,1765.3,1.5869]
[1745804854228,0.31393925,1765.9,1765.3,0.42271126]
[1745804854560,0.31393925,1765.9,1765.1,6.07]
[1745804854561,0.31393925,1765.9,1765.4,1.5869]
[1745804854747,3.20168282,1765.8,1765.2,1.5869]
[1745804854948,3.0,1765.7,1765.2,1.5869]
[1745804855261,3.31393925,1765.7,1765.2,1.5869]
[1745804855768,3.71138282,1765.6,1765.1,6.07]
[1745804855979,8.772,1765.7,1765.2,1.5869]
[1745804856469,0.31219782,1765.6,1765.2,1.5869]
[1745804857035,0.31219782,1765.6,1765.2,2.35259]
[1745804857263,0.31219782,1765.8,1765.2,2.35259]
[1745804857466,0.31219782,1765.8,1765.2,1.5869]
[1745804858543,3.51388064,1766.0,1765.2,1.5869]
[1745804858746,3.20168282,1765.8,1765.2,1.5869]
[1745804859073,3.20168282,1765.8,1765.1,6.07]
[1745804859269,0.5097,1765.5,1765.0,7.288]
[1745804859576,0.5097,1765.5,1765.0,1.515]
[1745804859774,0.31219782,1765.4,1764.8,1.5409]
[1745804861245,3.0,1765.3,1764.8,1.5409]
[1745804861576,3.5097,1765.1,1764.6,1.5189]
[1745804862653,0.311341,1765.0,1764.6,1.5189]
[1745804865580,0.311341,1765.0,1764.3,1.533]
[1745804865881,3.51302382,1765.0,1764.3,1.533]
[1745804866453,0.311341,1764.9,1764.3,1.533]
[1745804866642,0.311341,1764.9,1764.3,3.28892178]
[1745804867389,0.311341,1765.0,1764.3,3.28892178]
[1745804868049,3.5097,1765.1,1764.3,3.28892178]
[1745804868784,0.31045833,1765.0,1764.3,10.82592178]
[1745804868978,0.31045833,1765.0,1764.6,1.5344]
[1745804869356,0.31045833,1765.0,1764.6,1.98784]
[1745804869560,0.82015833,1765.4,1764.6,1.98784]
[1745804870151,3.20168282,1765.3,1764.6,1.5344]
[1745804870470,0.5097,1765.2,1764.6,1.5344]
[1745804870675,0.82015833,1765.2,1764.6,1.5344]
[1745804870885,0.31045833,1765.2,1764.6,1.5344]
[1745804871588,0.31045833,1765.2,1764.8,1.5288]
[1745804871785,0.31045833,1765.2,1765.0,1.5288]
[1745804871947,0.31045833,1765.2,1765.1,4.5288]
[1745804872151,0.31045833,1765.7,1765.2,1.5288]
[1745804872355,0.31045833,1765.7,1765.2,7.5988]
[1745804872888,0.82015833,1766.1,1765.2,8.02013204]
[1745804873071,0.82015833,1766.1,1765.2,13.79013204]
[1745804873269,3.82015833,1766.1,1765.2,13.3688]
[1745804873484,3.20168282,1765.9,1765.2,13.3688]
[1745804873792,0.5097,1765.8,1765.2,13.3688]
[1745804874854,0.82032575,1765.8,1765.2,13.3688]
[1745804876271,3.82032575,1765.8,1765.2,13.3688]
[1745804876623,3.82032575,1765.8,1765.2,7.5988]
[1745804876769,3.20168282,1765.5,1765.0,1.5079]
[1745804877104,9.28230857,1765.7,1765.0,1.5079]
[1745804877462,0.31062575,1765.6,1765.0,1.5079]
[1745804878408,0.31062575,1765.5,1765.0,1.5079]
[1745804878567,0.31062575,1765.5,1765.0,1.92573891]
[1745804879091,0.31062575,1765.7,1765.0,1.92573891]
[1745804879271,0.31062575,1765.7,1765.0,2.4183128]
[1745804879775,0.31062575,1765.6,1765.1,1.558]
[1745804880472,0.31062575,1766.0,1765.3,1.5681]
[1745804880673,0.31062575,1766.0,1765.5,1.5681]
[1745804880986,0.30728057,1766.0,1765.5,1.5681]
[1745804881311,0.5097,1766.1,1765.5,1.5681]
[1745804885306,3.20168282,1766.0,1765.5,1.5681]
[1745804885607,9.2787,1766.1,1765.5,1.5681]
[1745804887237,0.5097,1766.1,1765.5,1.5681]
[1745804887446,0.5097,1766.3,1765.5,1.5681]
[1745804887735,5.769,1766.5,1765.5,1.5681]
[1745804888040,5.769,1766.5,1765.4,6.20168282]
[1745804888041,5.769,1766.5,1765.6,6.07]
[1745804888340,3.20168282,1766.8,1765.8,1.5551]
[1745804888632,5.769,1766.6,1765.8,1.98028317]
[1745804889901,8.97068282,1766.6,1765.8,4.98028317]
[1745804890304,8.97068282,1766.6,1765.9,1.5616]
[1745804890533,8.97068282,1766.6,1765.9,2.06027832]
[1745804891106,5.769,1766.6,1765.9,2.06027832]
[1745804891302,3.20168282,1766.8,1766.0,1.5102]
[1745804891303,3.0,1766.7,1766.0,1.5102]
[1745804891521,8.768,1766.7,1766.0,1.5102]
[1745804893405,0.31195841,1766.6,1766.0,1.5102]
[1745804894017,3.51364123,1766.6,1765.9,1.6205]
[1745804894619,0.31195841,1766.5,1765.9,1.6205]
[1745804895413,0.31195841,1766.4,1765.9,1.6205]
[1745804896417,0.31195841,1766.6,1765.9,1.6205]
[1745804897558,0.31195841,1766.6,1766.1,1.6422]
[1745804897773,0.31195841,1766.5,1766.1,1.6422]
[1745804898457,0.31195841,1766.8,1766.1,1.6422]
[1745804898750,0.31195841,1766.8,1766.1,2.10642]
[1745804899070,0.31195841,1766.8,1766.2,1.6251]
[1745804899653,3.0,1766.9,1766.2,1.6251]
[1745804899654,0.31195841,1766.7,1766.2,1.6251]
[1745804900263,0.31195841,1766.6,1766.2,1.6251]
[1745804901069,0.31195841,1766.5,1766.2,1.6251]
[1745804901865,0.31195841,1766.4,1766.2,1.6251]
[1745804902532,0.31195841,1767.0,1766.2,1.6251]
[1745804902739,0.31195841,1767.0,1766.3,1.6392]
[1745804902976,5.759,1767.1,1766.3,1.6392]
[1745804902977,0.31195841,1766.9,1766.3,1.6392]
[1745804903172,0.31195841,1766.9,1766.3,2.10312]
[1745804903345,0.31195841,1766.9,1766.4,1.6392]
[1745804903958,6.07095841,1767.4,1766.4,1.6392]
[1745804904160,6.07095841,1767.4,1766.6,1.5812]
[1745804904340,0.31195841,1767.4,1766.6,1.5812]
[1745804904863,0.31195841,1767.3,1766.6,1.5812]
[1745804905070,0.31195841,1767.3,1766.7,1.5812]
[1745804905900,0.31195841,1767.2,1766.7,1.5812]
[1745804906578,0.31195841,1767.4,1766.7,1.5812]
[1745804907676,0.31195841,1767.3,1766.7,1.5812]
[1745804908689,0.31195841,1767.7,1766.9,1.5016]
[1745804908853,0.31195841,1767.7,1767.0,7.2596]
[1745804909190,0.31195841,1767.7,1767.1,2.22756]
[1745804909885,0.31195841,1767.6,1767.1,2.22756]
[1745804911092,0.31195841,1767.5,1767.1,2.22756]
[1745804912085,0.31195841,1767.5,1767.1,2.64329864]
[1745804912477,0.31195841,1767.4,1767.1,2.64329864]
[1745804912990,0.31195841,1767.4,1767.2,1.5697]
[1745804913183,0.31195841,1767.7,1767.2,1.5697]
[1745804913783,0.31195841,1767.6,1767.2,1.5697]
[1745804914772,0.31195841,1767.9,1767.2,1.5697]
[1745804915502,0.31195841,1767.8,1767.2,1.5697]
[1745804915675,0.5097,1767.7,1767.2,1.5697]
[1745804916072,3.51364123,1767.8,1767.2,1.5697]
[1745804916278,6.06895841,1767.8,1767.2,1.5697]
[1745804916485,9.27064123,1767.8,1767.2,1.5697]
[1745804917001,5.65313104,1769.0,1767.0,11.828]
[1745804917002,0.27679007,1767.7,1767.4,4.5511]
[1745804917298,0.9176584,1768.7,1767.8,1.5511]
[1745804917675,0.9176584,1768.7,1767.1,19.13136356]
[1745804917904,3.0,1768.4,1767.5,1.6415]
[1745804918193,5.756,1768.5,1767.7,1.6415]
[1745804918404,5.756,1768.5,1767.7,2.10565]
[1745804918772,0.7864,1768.6,1767.7,1.6415]
[1745804918978,0.7864,1768.6,1767.7,7.3975]
[1745804919600,0.7864,1768.6,1767.7,7.82835088]
[1745804920072,3.20168282,1768.5,1767.7,7.3975]
[1745804921807,3.7864,1768.4,1767.7,1.6415]
[1745804922018,3.20168282,1768.3,1767.7,1.6415]
[1745804922307,3.8700544,1768.4,1767.7,1.6415]
[1745804924604,3.0,1768.3,1767.7,1.6415]
[1745804927009,5.8386544,1768.4,1767.7,1.6415]
[1745804928728,6.1529584,1768.7,1767.9,1.5911]
[1745804929018,6.1529584,1768.7,1768.0,1.5911]
[1745804929396,3.0,1768.6,1768.0,1.5911]
[1745804930407,0.31213037,1768.5,1768.0,1.5911]
[1745804931018,0.31213037,1768.4,1768.0,1.5911]
[1745804931880,0.31213037,1768.3,1768.0,1.5911]
[1745804933025,0.31213037,1768.2,1767.8,1.641]
[1745804933983,0.31213037,1768.1,1767.8,1.641]
[1745804934792,0.31213037,1768.0,1767.8,1.641]
[1745804935315,0.31213037,1767.9,1767.8,1.641]
[1745804936183,0.31213037,1767.9,1767.6,1.5254]
[1745804936391,0.31213037,1767.8,1767.6,1.5254]
[1745804937484,0.31213037,1767.8,1767.3,5.745]
[1745804937485,0.31213037,1767.7,1767.3,7.2704]
[1745804937685,0.31213037,1767.7,1767.3,7.99744]
[1745804938288,0.7864,1768.0,1767.3,7.99744]
[1745804938289,0.31213037,1767.6,1767.3,7.99744]
[1745804939292,0.31213037,1767.5,1767.3,7.99744]
[1745804940424,0.31213037,1767.4,1767.3,7.99744]
[1745804940727,0.31213037,1767.4,1767.3,2.25244]
[1745804941026,0.31213037,1767.4,1767.3,1.5254]
[1745804942613,0.31213037,1767.4,1766.9,5.746]
[1745804942892,0.31213037,1767.4,1767.0,1.5742]
[1745804943500,0.31213037,1767.3,1767.0,1.5742]
[1745804944234,0.31213037,1767.2,1767.0,1.5742]
[1745804944391,0.31213037,1767.2,1767.0,2.30622]
[1745804944590,0.31213037,1767.2,1767.0,1.5742]
[1745804944890,1.09853037,1767.2,1766.7,1.535]
[1745804945306,0.31213037,1767.1,1766.7,1.535]
[1745804946115,0.31213037,1767.0,1766.7,1.535]
[1745804946318,0.31213037,1767.0,1766.7,4.73668282]
[1745804946493,0.31213037,1767.0,1766.9,1.5693]
[1745804946694,0.31213037,1767.5,1766.9,1.5693]
[1745804947292,0.31213037,1767.5,1767.0,3.0]
[1745804947496,0.31213037,1767.4,1767.1,1.5693]
[1745804948617,0.31213037,1767.3,1767.1,1.5693]
[1745804949426,0.31213037,1767.2,1767.1,1.5693]
[1745804950433,0.31213037,1767.7,1767.1,1.5693]
[1745804951335,0.31213037,1767.6,1767.1,1.5693]
[1745804951833,0.7864,1767.5,1766.9,1.5693]
[1745804952209,0.31213037,1767.4,1766.9,1.5693]
[1745804953243,0.31213037,1767.3,1766.9,1.5693]
[1745804954109,0.31213037,1767.2,1766.9,1.5693]
[1745804954528,0.7864,1767.1,1766.6,6.07]
[1745804954720,0.7864,1767.1,1766.6,1.64651]
[1745804955034,0.31213037,1767.0,1766.6,1.64651]
[1745804955740,8.94868282,1767.4,1766.6,1.64651]
[1745804955741,0.31213037,1766.9,1766.6,1.64651]
[1745804956460,0.31213037,1767.2,1766.5,10.3951]
[1745804956733,0.7864,1767.1,1766.5,7.3951]
[1745804957033,0.31213037,1767.2,1766.5,7.3951]
[1745804957240,0.31213037,1767.1,1766.5,7.3951]
[1745804958001,0.31213037,1767.0,1766.5,7.3951]
[1745804958201,0.31213037,1767.0,1766.5,8.13461]
[1745804958841,0.7864,1766.9,1766.5,8.13461]
[1745804959041,1.09853037,1766.9,1766.3,4.97352]
[1745804959563,1.09853037,1766.9,1766.3,1.5096]
[1745804959849,1.09853037,1766.9,1766.1,5.738]
[1745804959850,9.83653037,1766.9,1766.1,7.2476]
[1745804960066,3.98808282,1766.6,1765.8,1.5096]
[1745804960339,0.7864,1766.5,1765.8,1.5096]
[1745804960518,0.7864,1766.4,1765.7,5.738]
[1745804960709,0.7864,1766.4,1765.7,6.46276]
[1745804962343,0.31213037,1766.3,1765.7,6.46276]
[1745804962713,0.31213037,1766.2,1765.7,6.46276]
[1745804963240,0.31213037,1766.2,1765.8,1.6177]
[1745804963843,0.31213037,1766.3,1765.8,1.6177]
[1745804964834,0.31213037,1766.3,1765.7,5.738]
[1745804965745,0.31213037,1766.2,1765.7,5.738]
[1745804966446,0.31213037,1766.2,1765.7,6.47357]
[1745804966631,0.31213037,1766.3,1765.7,6.47357]
[1745804968546,1.09853037,1766.4,1765.7,6.47357]
[1745804969587,0.31213037,1766.3,1765.7,6.47357]